fUSD/lending_fUSD_20240427
["ID","MTS","AMOUNT","RATE_DAILY","PERIOD"]
[323716692,1714188642572,-500.0,0.00012679,2]
[323716693,1714188642581,-214.53512951,0.00012679,2]
[323716694,1714188642590,-413.52879047,0.00012679,2]
[323716695,1714188642599,-508.49046285,0.00012679,2]
[323716696,1714188642609,-508.38822142,0.00012679,2]
[323716697,1714188642619,-512.67360081,0.00012679,2]
[323716698,1714188642628,-563.56710649,0.00012679,2]
[323716699,1714188642638,-500.0,0.00012679,2]
[323716700,1714188642647,-201.05110466,0.00012679,2]
[323716701,1714188642656,-221.52527255,0.00012679,2]
[323716702,1714188642666,-500.0,0.00012679,2]
[323716703,1714188642675,-500.0,0.00012679,2]
[323716704,1714188642684,-513.82804373,0.00012679,2]
[323716705,1714188642693,-500.0,0.00012679,2]
[323716706,1714188642704,-500.0,0.00012679,2]
[323716707,1714188642714,-500.0,0.00012679,2]
[323716708,1714188642723,-503.75490708,0.00012679,2]
[323716709,1714188642732,-500.0,0.00012679,2]
[323716710,1714188642741,-500.0,0.00012679,2]
[323716711,1714188642752,-504.72142711,0.00012679,2]
[323716712,1714188642762,-263.76349796,0.00012679,2]
[323716713,1714188642771,-500.0,0.00012679,2]
[323716714,1714188642781,-504.32351378,0.00012679,2]
[323716715,1714188642790,-500.0,0.00012679,2]
[323716716,1714188642800,-533.93930639,0.00012679,2]
[323716717,1714188642810,-50552.895108,0.00012679,2]
[323716718,1714188642821,-500.0,0.00012679,2]
[323716719,1714188642831,-504.65508935,0.00012679,2]
[323716720,1714188642841,-500.0,0.00012679,2]
[323716721,1714188642851,-500.0,0.00012679,2]
[323716722,1714188642861,-500.0,0.00012679,2]
[323716723,1714188642872,-500.0,0.00012679,2]
[323716724,1714188642882,-500.0,0.00012679,2]
[323716726,1714188642893,-500.0,0.00012679,2]
[323716728,1714188642902,-301.70563192,0.00012679,2]
[323716730,1714188642912,-262.587848,0.00012679,2]
[323716732,1714188642922,-500.0,0.00012679,2]
[323716734,1714188642933,-517.98447001,0.00012679,2]
[323716735,1714188642943,-31.52814579,0.00012679,2]
[323716737,1714188642963,-478.82629007,0.00012679,2]
[323716739,1714188642973,-403.08774277,0.00012679,2]
[323716753,1714188643166,-622.70417605,0.00012678,2]
[323716754,1714188643178,-108.00202409,0.00012679,2]
[323716755,1714188643188,-500.0,0.00012679,2]
[323716756,1714188643197,-507.75249348,0.00012679,2]
[323716757,1714188643206,-745.53,0.00012679,2]
[323716758,1714188643217,-16.01130638,0.00012679,2]
[323716759,1714188643242,-324.30804787,0.00012678,2]
[323716760,1714188643255,-491.38591554,0.00012679,2]
[323716761,1714188643265,-508.73460729,0.00012679,2]
[323716762,1714188643274,-508.28366484,0.00012679,2]
[323716763,1714188643284,-500.0,0.00012679,2]
[323716764,1714188643293,-505.15455727,0.00012679,2]
[323716765,1714188643302,-134.17656972,0.00012679,2]
[323716766,1714188643361,-500.0,0.00012678,2]
[323716767,1714188643370,-379.58005819,0.00012679,2]
[323716768,1714188643380,-550.18351553,0.00012679,2]
[323716769,1714188643389,-464.26328628,0.00012679,2]
[323716770,1714188643400,-42.82959763,0.00012679,2]
[323716771,1714188643409,-500.0,0.00012679,2]
[323716772,1714188643419,-390.21830342,0.00012679,2]
[323716779,1714188646131,-2738.1022,0.00012578,2]
[323716780,1714188646141,-5000.0,0.00012677,2]
[323716781,1714188646150,-621.51877353,0.00012677,2]
[323716782,1714188646159,-427.33773077,0.00012677,2]
[323716783,1714188646169,-500.0,0.00012678,2]
[323716784,1714188646184,-500.0,0.00012678,2]
[323716785,1714188646193,-500.0,0.00012678,2]
[323716786,1714188646203,-500.0,0.00012678,2]
[323716787,1714188646212,-500.0,0.00012678,2]
[323716788,1714188646224,-500.0,0.00012678,2]
[323716789,1714188646233,-121.09116507,0.00012679,2]
[323716790,1714188646242,-508.5505792,0.00012679,2]
[323716791,1714188646254,-500.0,0.00012679,2]
[323716792,1714188646263,-501.95205558,0.00012679,2]
[323716793,1714188646321,-500.0,0.00012679,2]
[323716794,1714188646330,-500.0,0.00012679,2]
[323716795,1714188646339,-500.0,0.00012679,2]
[323716796,1714188646348,-503.39294811,0.00012679,2]
[323716797,1714188646357,-502.70705015,0.00012679,2]
[323716798,1714188646367,-504.30202159,0.00012679,2]
[323716799,1714188646376,-503.59522882,0.00012679,2]
[323716800,1714188646385,-513.0045749,0.00012679,2]
[323716801,1714188646394,-516.27728576,0.00012679,2]
[323716802,1714188646404,-500.0,0.00012679,2]
[323716803,1714188646414,-512.05999663,0.00012679,2]
[323716804,1714188646424,-515.8414735,0.00012679,2]
[323716805,1714188646433,-204.682457,0.00012679,2]
[323716806,1714188646442,-500.0,0.00012679,2]
[323716807,1714188646452,-151.0,0.00012679,2]
[323716808,1714188646461,-556.03456521,0.00012679,2]
[323716809,1714188646471,-151.0,0.00012679,2]
[323716810,1714188646481,-500.0,0.00012679,2]
[323716811,1714188646490,-151.0,0.00012679,2]
[323716812,1714188646500,-503.86226522,0.00012679,2]
[323716813,1714188646509,-736.14,0.00012679,2]
[323716814,1714188646518,-504.52825283,0.00012679,2]
[323716815,1714188646527,-201.67877988,0.00012679,2]
[323716816,1714188646536,-512.80740448,0.00012679,2]
[323716817,1714188646546,-500.0,0.00012679,2]
[323716818,1714188646555,-179.95804,0.00012679,2]
[323716819,1714188646564,-534.56725426,0.00012679,2]
[323716820,1714188646575,-504.32820745,0.00012679,2]
[323716821,1714188646586,-514.42670347,0.00012679,2]
[323716822,1714188646595,-500.0,0.00012679,2]
[323716823,1714188646605,-500.0,0.00012679,2]
[323716824,1714188646615,-500.0,0.00012679,2]
[323716825,1714188646624,-500.0,0.00012679,2]
[323716826,1714188646633,-500.0,0.00012679,2]
[323716827,1714188646642,-500.0,0.00012679,2]
[323716828,1714188646651,-279.70753,0.00012679,2]
[323716829,1714188646660,-500.0,0.00012679,2]
[323716830,1714188646669,-279.70753,0.00012679,2]
[323716831,1714188646680,-500.0,0.00012679,2]
[323716832,1714188646689,-500.0,0.00012679,2]
[323716833,1714188646699,-500.0,0.00012679,2]
[323716834,1714188646709,-556.57,0.00012679,2]
[323716835,1714188646718,-1448.32,0.00012679,2]
[323716836,1714188646727,-500.0,0.00012679,2]
[323716837,1714188646736,-500.0,0.00012679,2]
[323716838,1714188646746,-2068.36,0.00012679,2]
[323716839,1714188646756,-500.0,0.00012679,2]
[323716840,1714188646765,-1029.0,0.0001268,2]
[323716841,1714188646774,-283413.51026594,0.0001268,2]
[323716842,1714188646786,-324.92839964,0.0001268,2]
[323716843,1714188646816,-404.0,0.0001268,2]
[323716844,1714188646842,-500.0,0.00012678,2]
[323716845,1714188646851,-175528.29292086,0.0001268,2]
[323716846,1714188659779,327.44713496,7.582e-05,2]
[323716847,1714189326978,304.82,8.219e-05,2]
[323716882,1714189832245,-273.72105456,0.00010067,2]
[323716885,1714189832342,-153.61667621,0.00010067,2]
[323716886,1714189832352,-155.0,0.00010068,2]
[323716887,1714189832362,-231.04,0.00010083,2]
[323716888,1714189832371,-168.87,0.00010083,2]
[323716889,1714189832381,-605.91000743,0.00010083,2]
[323716890,1714189832503,-178.53999257,0.00010083,2]
[323716891,1714189832513,-304.82,0.0001048,2]
[323716892,1714189832522,-155.0,0.000109,2]
[323716893,1714189832531,-81.9058797,0.00011,2]
[323716912,1714189838315,-4514.70311179,0.00011,2]
[323716916,1714189838325,-231.04,0.00011343,2]
[323716918,1714189838334,-1975.65,0.00011412,2]
[323716921,1714189838343,-150.0,0.00011562,2]
[323716925,1714189838353,-395.18,0.00011581,2]
[323716927,1714189838362,-168.7,0.00011592,2]
[323716928,1714189838371,-418.78,0.00011667,2]
[323716929,1714189838380,-8794.44,0.00011667,2]
[323716930,1714189838390,-3639.03306757,0.00011667,2]
[323716931,1714189838401,-3275.80353,0.00011667,2]
[323716932,1714189838412,-2603.10643675,0.00011667,2]
[323716933,1714189838427,-1467.22952061,0.00011667,2]
[323716934,1714189838642,-580.4,0.00011667,2]
[323716935,1714189838698,-654.21511587,0.00011667,2]
[323716936,1714189838710,-574.37999999,0.00011667,2]
[323716955,1714189840363,-3339.87943909,0.00011667,2]
[323716959,1714189840525,-9211.76289012,0.00011667,2]
[323716960,1714189840535,-150.0,0.00011978,2]
[323716961,1714189840545,-162.9,0.00011978,2]
[323716962,1714189840557,-150.0,0.00011978,2]
[323716963,1714189840567,-162.9,0.00011978,2]
[323716964,1714189840576,-1290.45771614,0.00012,2]
[323716965,1714189840586,-1050.0,0.00012,2]
[323716966,1714189840597,-1266.94980012,0.00012,2]
[323716967,1714189840639,-364.162288,0.00012,2]
[323716968,1714189840694,-3368.88791188,0.00012,2]
[323716969,1714189840704,-413.97,0.00012055,2]
[323716970,1714189840714,-37.81366623,0.00012055,2]
[323716971,1714189840725,-376.15633377,0.00012055,2]
[323716972,1714189840737,-1499.53,0.00012055,2]
[323716973,1714189840747,-413.97,0.00012055,2]
[323716974,1714189840756,-22.86844734,0.00012055,2]
[323716975,1714189840768,-391.10155266,0.00012055,2]
[323716976,1714189840777,-413.97,0.00012055,2]
[323716977,1714189840787,-151.4,0.00012192,2]
[323716978,1714189840796,-838.22,0.00012192,2]
[323716979,1714189840806,-306.91,0.00012192,2]
[323716980,1714189840816,-150.0,0.00012192,2]
[323716982,1714189840826,-162.9,0.00012192,2]
[323716984,1714189840835,-1.57574734,0.00012192,2]
[323716988,1714189840860,-275.950685,0.00012192,2]
[323716990,1714189840872,-652.13429658,0.00012192,2]
[323717075,1714189843427,-114.78927108,0.00012192,2]
[323717076,1714189843437,-303.51,0.00012192,2]
[323717077,1714189843447,-162.9,0.00012192,2]
[323717078,1714189843456,-150.0,0.00012192,2]
[323717079,1714189843465,-162.9,0.00012192,2]
[323717080,1714189843475,-82.82107092,0.00012328,2]
[323717081,1714189843486,-383.48999995,0.00012328,2]
[323717082,1714189843498,-90.68892913,0.00012328,2]
[323717083,1714189843508,-253.55209141,0.00012424,2]
[323717084,1714189843517,-518.80137791,0.00012478,2]
[323717085,1714189843529,-276.80862209,0.00012478,2]
[323717086,1714189843538,-1210.42369939,0.0001248,2]
[323717087,1714189843588,-6289.57630061,0.0001248,2]
[323717088,1714189843597,-295.5490758,0.00012504,2]
[323717089,1714189843606,-573.13288812,0.00012504,2]
[323717090,1714189843616,-573.13288803,0.00012532,2]
[323717091,1714189843625,-573.13288803,0.00012561,2]
[323717092,1714189843635,-1000.0,0.00012578,2]
[323717093,1714189843645,-500.0,0.00012578,2]
[323717094,1714189843655,-3555.47595941,0.00012578,2]
[323717095,1714189843667,-3777.85563494,0.00012578,2]
[323717096,1714189843679,-36932.81410565,0.00012578,2]
[323717097,1714189843688,-71211.1809,0.00012578,2]
[323717098,1714189843698,-1000.0,0.00012579,2]
[323717099,1714189843707,-1000.0,0.00012579,2]
[323717100,1714189843717,-500.0,0.00012579,2]
[323717101,1714189843726,-500.0,0.00012579,2]
[323717102,1714189843736,-10000.0,0.00012579,2]
[323717103,1714189843746,-500.0,0.00012579,2]
[323717104,1714189843755,-500.0,0.00012579,2]
[323717105,1714189843765,-500.0,0.00012579,2]
[323717106,1714189843775,-500.0,0.00012579,2]
[323717107,1714189843784,-500.0,0.00012579,2]
[323717108,1714189843793,-500.0,0.00012579,2]
[323717109,1714189843801,-521.97,0.00012579,2]
[323717110,1714189843809,-769.42,0.00012579,2]
[323717111,1714189843819,-500.0,0.00012579,2]
[323717112,1714189843828,-500.0,0.00012579,2]
[323717113,1714189843837,-500.0,0.00012579,2]
[323717114,1714189843847,-783.8,0.00012579,2]
[323717115,1714189843856,-500.0,0.00012579,2]
[323717116,1714189843865,-500.0,0.00012579,2]
[323717117,1714189843875,-500.0,0.00012579,2]
[323717118,1714189843884,-1416.75,0.00012579,2]
[323717119,1714189843893,-500.0,0.00012579,2]
[323717120,1714189843903,-560.88,0.00012579,2]
[323717121,1714189843912,-500.0,0.00012579,2]
[323717122,1714189843921,-500.0,0.00012579,2]
[323717123,1714189843931,-500.0,0.00012579,2]
[323717124,1714189843940,-1190.13,0.00012579,2]
[323717125,1714189843949,-1068.59,0.00012579,2]
[323717126,1714189843958,-1625.61,0.00012579,2]
[323717127,1714189843968,-500.0,0.00012579,2]
[323717128,1714189843977,-500.0,0.00012579,2]
[323717129,1714189843986,-500.0,0.00012579,2]
[323717130,1714189843997,-500.0,0.00012579,2]
[323717131,1714189844006,-613.81220251,0.00012579,2]
[323717132,1714189844015,-1697.79055333,0.00012579,2]
[323717133,1714189844027,-3127.82944667,0.00012579,2]
[323717134,1714189844036,-500.0,0.00012579,2]
[323717135,1714189844045,-541.70855178,0.00012579,2]
[323717136,1714189844055,-500.0,0.00012579,2]
[323717137,1714189844064,-500.0,0.00012579,2]
[323717138,1714189844074,-620.92,0.00012579,2]
[323717139,1714189844083,-500.0,0.00012579,2]
[323717140,1714189844093,-455.90981566,0.00012579,2]
[323717141,1714189844112,-44.09018434,0.00012579,2]
[323717142,1714189844122,-500.0,0.00012579,2]
[323717143,1714189844131,-500.0,0.00012579,2]
[323717144,1714189844140,-500.0,0.00012579,2]
[323717145,1714189844150,-500.0,0.00012579,2]
[323717146,1714189844159,-1112.71343074,0.0001258,2]
[323717147,1714189844169,-4295.92042126,0.0001258,2]
[323717148,1714189844181,-547.46957672,0.0001258,2]
[323717149,1714189844194,-4039.54,0.0001258,2]
[323717153,1714189846326,-240.10979279,0.00012579,2]
[323717154,1714189846336,-6908.69020721,0.0001258,2]
[323717155,1714189846348,-602.34,0.0001258,2]
[323717156,1714189846382,-1110.09945186,0.0001258,2]
[323717157,1714189846490,-546.49192064,0.0001258,2]
[323717695,1714190085052,155.22448718,0.00018998,120]
[323717696,1714190218748,74531.0,0.00025,120]
[323717697,1714190295863,-487.5386522,9.788e-05,2]
[323717698,1714190295886,-291.36,9.789e-05,2]
[323717699,1714190295907,-155.0,0.0001,2]
[323717700,1714190295929,-155.0,0.000109,2]
[323717701,1714190295952,-200.0,0.00011,2]
[323717702,1714190295978,-1473.99,0.0001157,2]
[323717703,1714190296000,-1007.52,0.00011593,2]
[323717704,1714190296023,-227.6,0.00011604,2]
[323717705,1714190296045,-666.76,0.00011643,2]
[323717706,1714190296067,-157.24133803,0.00011953,2]
[323717707,1714190342628,546.96745632,0.00011953,2]
[323717708,1714190346470,276.79,9.736e-05,2]
[323717709,1714190346710,276.79,0.00012,2]
[323717710,1714190348036,155.0,0.000109,2]
[323717711,1714190358596,546.96745632,0.00011953,2]
[323717712,1714190368046,155.0,0.000109,2]
[323717713,1714190374594,546.96745632,0.00011953,2]
[323717714,1714190388043,155.0,0.000109,2]
[323717715,1714190390294,411.70157619,0.00011953,2]
[323717716,1714190394602,546.96745632,0.00011953,2]
[323717717,1714190408050,155.0,0.000109,2]
[323717718,1714190410869,546.96745632,0.00011953,2]
[323717719,1714190426611,371.93770392,0.00011953,2]
[323717720,1714190427352,200.0,0.00011,2]
[323717721,1714190432209,155.0,0.000109,2]
[323717722,1714190454199,155.0,0.000109,2]
[323717723,1714190459873,4459.3547,0.00011952,2]
[323717724,1714190476197,155.0,0.000109,2]
[323717725,1714190494197,155.0,0.000109,2]
[323717726,1714190497190,316.14,0.00011694,2]
[323717727,1714190516206,155.0,0.000109,2]
[323717728,1714190538199,155.0,0.000109,2]
[323717729,1714190559351,155.0,0.000109,2]
[323717730,1714190567702,671.34,0.00011647,2]
[323717731,1714190581362,155.0,0.000109,2]
[323717732,1714190595357,155.0,0.000109,2]
[323717733,1714190602669,415.20639167,0.000109,2]
[323717734,1714190611394,155.0,0.000109,2]
[323717735,1714190626216,399.92981094,0.000109,2]
[323717736,1714190628812,155.0,0.000109,2]
[323717737,1714190640551,184.14,0.00011615,2]
[323717738,1714190647393,155.0,0.000109,2]
[323717739,1714190652719,298.84757904,0.000109,2]
[323717740,1714190668725,299.33345953,0.000109,2]
[323717741,1714190671590,155.0,0.000109,2]
[323717742,1714190687585,155.0,0.000109,2]
[323717743,1714190705584,155.0,0.000109,2]
[323717744,1714190721711,155.0,0.000109,2]
[323717745,1714190726798,155.0,0.00010899,2]
[323717746,1714190737752,155.0,0.000109,2]
[323717748,1714190761646,155.0,0.000109,2]
[323717749,1714190790739,155.0,0.000109,2]
[323717750,1714190808731,155.0,0.000109,2]
[323717751,1714190825951,305.19,9.737e-05,2]
[323717752,1714190834734,155.0,0.000109,2]
[323717753,1714190839197,427.33773077,0.00012,2]
[323717754,1714190850738,155.0,0.000109,2]
[323717755,1714190868748,155.0,0.000109,2]
[323717756,1714190873519,527.20251454,0.00012,2]
[323717757,1714190890742,155.0,0.000109,2]
[323717758,1714190909911,155.0,0.000109,2]
[323717759,1714190929930,155.0,0.000109,2]
[323717760,1714190947909,155.0,0.000109,2]
[323717768,1714190965895,155.0,0.000109,2]
[323717769,1714190979319,155.0,0.00012,2]
[323717770,1714190983897,155.0,0.000109,2]
[323717771,1714191003906,155.0,0.000109,2]
[323717775,1714191012697,533.4,0.00011655,2]
[323717792,1714191031451,-305.19,0.00012001,2]
[323717793,1714191031461,-65.30401524,0.00012037,2]
[323717794,1714191031663,-609.67999998,0.00012037,2]
[323717795,1714191031718,-58.93438344,0.00012037,2]
[323717796,1714191031728,-10000.0,0.00012242,2]
[323717797,1714191031737,-1041.7727,0.0001248,2]
[323717798,1714191031746,-1000.0,0.0001248,2]
[323717799,1714191031756,-10478.045,0.0001248,2]
[323717800,1714191031766,-1351.0,0.0001248,2]
[323717801,1714191031775,-1351.0,0.0001248,2]
[323717802,1714191031784,-1046.28194073,0.0001248,2]
[323717813,1714191032039,-304.71805927,0.0001248,2]
[323717814,1714191032048,-217.61170713,0.0001248,2]
[323717815,1714191032119,155.0,0.000109,2]
[323717816,1714191037593,-292.82652537,0.00012242,2]
[323717817,1714191037725,-9707.17347463,0.00012242,2]
[323717818,1714191037735,-1133.38829287,0.0001248,2]
[323717819,1714191037746,-1351.0,0.0001248,2]
[323717820,1714191037756,-1351.0,0.0001248,2]
[323717821,1714191037771,-1351.0,0.0001248,2]
[323717822,1714191037781,-1351.0,0.0001248,2]
[323717823,1714191037791,-1351.0,0.0001248,2]
[323717824,1714191037801,-1351.0,0.0001248,2]
[323717825,1714191037811,-1576.3440269,0.0001248,2]
[323717826,1714191037821,-7500.0,0.0001248,2]
[323717827,1714191037831,-406.18437172,0.0001248,2]
[323717828,1714191037842,-1576.34402689,0.00012518,2]
[323717829,1714191037852,-1576.34402689,0.00012556,2]
[323717830,1714191037861,-2012.09,0.0001257,2]
[323717831,1714191037871,-335.86793447,0.00012571,2]
[323717832,1714191037881,-9617.3400488,0.00012577,2]
[323717833,1714191037892,-4125.76288333,0.00012577,2]
[323717834,1714191037911,-5382.00270107,0.00012577,2]
[323717835,1714191037920,-231.24039108,0.00012577,2]
[323717836,1714191037930,-558.38212117,0.00012577,2]
[323717838,1714191037939,-355.24024923,0.00012577,2]
[323717839,1714191037950,-155.0,0.00012577,2]
[323717840,1714191037959,-1000.0,0.00012578,2]
[323717841,1714191037969,-500.0,0.00012578,2]
[323717843,1714191037978,-2935.27362657,0.00012578,2]
[323717844,1714191037989,-467.18715691,0.00012578,2]
[323717845,1714191037999,-181.15643786,0.00012578,2]
[323717846,1714191038008,-252.59880162,0.00012578,2]
[323717847,1714191038020,-208.89105426,0.00012578,2]
[323717848,1714191038029,-592.25375447,0.00012578,2]
[323717849,1714191038038,-500.0,0.00012578,2]
[323717850,1714191038047,-1720.62,0.00012578,2]
[323717851,1714191038056,-775.83,0.00012578,2]
[323717852,1714191038066,-500.0,0.00012578,2]
[323717853,1714191038075,-500.0,0.00012578,2]
[323717854,1714191038085,-978.16,0.00012578,2]
[323717855,1714191038094,-500.0,0.00012578,2]
[323717856,1714191038103,-500.0,0.00012578,2]
[323717857,1714191038113,-1795.91,0.00012578,2]
[323717858,1714191038122,-500.0,0.00012578,2]
[323717859,1714191038132,-500.0,0.00012578,2]
[323717860,1714191038141,-500.0,0.00012578,2]
[323717861,1714191038150,-1136.45,0.00012578,2]
[323717862,1714191038159,-500.0,0.00012578,2]
[323717863,1714191038169,-500.0,0.00012578,2]
[323717864,1714191038178,-500.0,0.00012578,2]
[323717865,1714191038187,-500.0,0.00012578,2]
[323717866,1714191038197,-717.55,0.00012578,2]
[323717867,1714191038206,-500.0,0.00012578,2]
[323717868,1714191038215,-500.0,0.00012578,2]
[323717869,1714191038225,-768.54,0.00012578,2]
[323717870,1714191038235,-500.0,0.00012578,2]
[323717871,1714191038244,-500.0,0.00012578,2]
[323717872,1714191038255,-503.18319624,0.00012578,2]
[323717873,1714191038265,-500.22,0.00012578,2]
[323717874,1714191038275,-500.0,0.00012578,2]
[323717875,1714191038284,-500.0,0.00012578,2]
[323717876,1714191038293,-571.78,0.00012578,2]
[323717877,1714191038302,-504.00336468,0.00012578,2]
[323717878,1714191038312,-500.0,0.00012578,2]
[323717879,1714191038321,-500.0,0.00012578,2]
[323717880,1714191038331,-500.0,0.00012578,2]
[323717881,1714191038340,-514.52781539,0.00012578,2]
[323717882,1714191038350,-500.0,0.00012578,2]
[323717883,1714191038359,-500.0,0.00012578,2]
[323717884,1714191038369,-1216.61,0.00012578,2]
[323717885,1714191038379,-540.96150149,0.00012578,2]
[323717886,1714191038388,-500.0,0.00012578,2]
[323717887,1714191038398,-829.78,0.00012578,2]
[323717888,1714191038408,-500.0,0.00012578,2]
[323717889,1714191038418,-500.0,0.00012578,2]
[323717890,1714191038427,-500.0,0.00012578,2]
[323717891,1714191038436,-509.39999174,0.00012578,2]
[323717892,1714191038446,-500.0,0.00012578,2]
[323717893,1714191038455,-500.0,0.00012578,2]
[323717894,1714191038465,-581.83,0.00012578,2]
[323717895,1714191038474,-1407.45,0.00012578,2]
[323717896,1714191038483,-1191.24,0.00012578,2]
[323717897,1714191038492,-500.0,0.00012578,2]
[323717898,1714191038502,-1166.25,0.00012578,2]
[323717899,1714191038512,-1069.62,0.00012578,2]
[323717900,1714191038524,-500.0,0.00012578,2]
[323717901,1714191038533,-2553.08,0.00012578,2]
[323717902,1714191038543,-500.0,0.00012578,2]
[323717903,1714191038552,-819.48,0.00012578,2]
[323717904,1714191038562,-500.0,0.00012578,2]
[323717905,1714191038571,-500.0,0.00012578,2]
[323717906,1714191038580,-500.0,0.00012578,2]
[323717907,1714191038589,-500.0,0.00012578,2]
[323717908,1714191038598,-1178.57,0.00012578,2]
[323717909,1714191038607,-500.0,0.00012578,2]
[323717910,1714191038616,-500.0,0.00012578,2]
[323717911,1714191038625,-500.0,0.00012578,2]
[323717912,1714191038634,-4810.7,0.00012578,2]
[323717913,1714191038644,-500.0,0.00012578,2]
[323717914,1714191038654,-507.59,0.00012578,2]
[323717915,1714191038663,-500.0,0.00012578,2]
[323717916,1714191038673,-522.67981214,0.00012578,2]
[323717917,1714191038682,-500.0,0.00012578,2]
[323717918,1714191038691,-615.88,0.00012578,2]
[323717919,1714191038700,-500.0,0.00012578,2]
[323717920,1714191038710,-500.0,0.00012578,2]
[323717921,1714191038719,-500.0,0.00012578,2]
[323717922,1714191038729,-500.0,0.00012578,2]
[323717923,1714191038738,-500.0,0.00012578,2]
[323717924,1714191038748,-500.0,0.00012578,2]
[323717925,1714191038757,-3690.96,0.00012578,2]
[323717926,1714191038770,-500.0,0.00012578,2]
[323717927,1714191038780,-505.84660403,0.00012578,2]
[323717928,1714191038789,-500.0,0.00012578,2]
[323717929,1714191038799,-1000.0,0.00012579,2]
[323717930,1714191038808,-1000.0,0.00012579,2]
[323717931,1714191038818,-500.0,0.00012579,2]
[323717932,1714191038827,-205.06701735,0.00012579,2]
[323717933,1714191038837,-500.0,0.00012579,2]
[323717934,1714191038847,-500.0,0.00012579,2]
[323717935,1714191038857,-500.0,0.00012579,2]
[323717936,1714191038866,-500.0,0.00012579,2]
[323717937,1714191038876,-508.85442529,0.00012579,2]
[323717938,1714191038886,-500.0,0.00012579,2]
[323717939,1714191038895,-500.0,0.00012579,2]
[323717940,1714191038905,-501.5910412,0.00012579,2]
[323717941,1714191038917,-511.90279999,0.00012579,2]
[323717942,1714191038926,-589.7476755,0.00012579,2]
[323717943,1714191038936,-500.0,0.00012579,2]
[323717944,1714191038945,-500.0,0.00012579,2]
[323717945,1714191038956,-500.0,0.00012579,2]
[323717946,1714191038965,-508.07852421,0.00012579,2]
[323717947,1714191038974,-500.0,0.00012579,2]
[323717948,1714191038985,-317.92425123,0.00012579,2]
[323717949,1714191038995,-500.0,0.00012579,2]
[323717950,1714191039004,-500.0,0.00012579,2]
[323717951,1714191039016,-500.0,0.00012579,2]
[323717952,1714191039026,-521.4709431,0.00012579,2]
[323717953,1714191039035,-380.48760572,0.00012579,2]
[323717954,1714191039045,-500.0,0.00012579,2]
[323717955,1714191039054,-500.0,0.00012579,2]
[323717956,1714191039064,-204.80081361,0.00012579,2]
[323717957,1714191039074,-500.0,0.00012579,2]
[323717958,1714191039083,-500.0,0.00012579,2]
[323717959,1714191039093,-500.0,0.00012579,2]
[323717960,1714191039102,-507.49381255,0.00012579,2]
[323717961,1714191039111,-500.0,0.00012579,2]
[323717962,1714191039122,-511.76948564,0.00012579,2]
[323717963,1714191039132,-483.53368875,0.00012579,2]
[323717964,1714191039141,-500.0,0.00012579,2]
[323717965,1714191039150,-500.0,0.00012579,2]
[323717966,1714191039159,-500.0,0.00012579,2]
[323717967,1714191039168,-500.0,0.00012579,2]
[323717968,1714191039177,-392.48484006,0.00012579,2]
[323717969,1714191039187,-524.43415469,0.00012579,2]
[323717970,1714191039196,-500.0,0.00012579,2]
[323717971,1714191039205,-209.53684703,0.00012579,2]